fUSD/lending_fUSD_20240825
["ID","MTS","AMOUNT","RATE_DAILY","PERIOD"]
[335881367,1724568646330,-422.2216096,0.00010986,2]
[335881368,1724568646340,-627.8783904,0.00010986,2]
[335881369,1724568646351,-752.7816096,0.00010986,2]
[335881370,1724568646364,-430.0183904,0.00010986,2]
[335881371,1724568646377,-950.6416096,0.00010986,2]
[335881372,1724568646388,-500.0,0.00010986,2]
[335881373,1724568646399,-7.84342444,0.00010986,2]
[335881374,1724568646410,-492.15657556,0.00010986,2]
[335881375,1724568646420,-500.0,0.00010986,2]
[335881376,1724568646432,-500.0,0.00010986,2]
[335881377,1724568646443,-500.0,0.00010986,2]
[335881378,1724568646453,-71.31608217,0.00010986,2]
[335881379,1724568646466,-515.56383828,0.00010986,2]
[335881380,1724568646478,-582.83643837,0.00010986,2]
[335881381,1724568646491,-4.51364118,0.00010986,2]
[335881382,1724568646501,-500.0,0.00010986,2]
[335881383,1724568646510,-500.0,0.00010986,2]
[335881384,1724568646519,-500.0,0.00010986,2]
[335881385,1724568646529,-475.28040153,0.00010986,2]
[335881386,1724568646542,-24.71959847,0.00010986,2]
[335881387,1724568646551,-435.91135137,0.00010986,2]
[335881388,1724568646574,-64.08864863,0.00010986,2]
[335881389,1724568646584,-500.0,0.00010986,2]
[335881390,1724568646594,-811.48,0.00010986,2]
[335881391,1724568646604,-360.84441162,0.00010986,2]
[335881392,1724568646616,-139.15558838,0.00010986,2]
[335881393,1724568646626,-366.26210335,0.00010986,2]
[335881394,1724568646638,-133.73789665,0.00010986,2]
[335881395,1724568646648,-1262.05,0.00010986,2]
[335881396,1724568646657,-500.0,0.00010986,2]
[335881397,1724568646666,-711.92,0.00010986,2]
[335881398,1724568646675,-500.0,0.00010986,2]
[335881399,1724568646685,-500.0,0.00010986,2]
[335881400,1724568646694,-500.0,0.00010986,2]
[335881401,1724568646704,-500.0,0.00010986,2]
[335881402,1724568646714,-391.56804747,0.00010986,2]
[335881403,1724568646724,-500.0,0.00010986,2]
[335881404,1724568646734,-91.67536933,0.00010986,2]
[335881405,1724568646746,-408.32463067,0.00010986,2]
[335881406,1724568646756,-500.0,0.00010986,2]
[335881407,1724568646765,-133.52536933,0.00010986,2]
[335881408,1724568646777,-693.58,0.00010986,2]
[335881409,1724568646788,-365.54463067,0.00010986,2]
[335881410,1724568646798,-301.11536933,0.00010986,2]
[335881411,1724568646810,-198.88463067,0.00010986,2]
[335881412,1724568646819,-256.40385251,0.00010986,2]
[335881413,1724568646830,-243.59614749,0.00010986,2]
[335881414,1724568646840,-500.0,0.00010986,2]
[335881415,1724568646849,-500.0,0.00010986,2]
[335881416,1724568646859,-1020.37,0.00010986,2]
[335881417,1724568646869,-500.0,0.00010986,2]
[335881418,1724568646879,-500.0,0.00010986,2]
[335881419,1724568646888,-500.0,0.00010986,2]
[335881420,1724568646898,-500.0,0.00010986,2]
[335881421,1724568646907,-500.0,0.00010986,2]
[335881422,1724568646917,-500.0,0.00010986,2]
[335881423,1724568646926,-500.0,0.00010986,2]
[335881424,1724568646936,-500.0,0.00010986,2]
[335881425,1724568646945,-500.0,0.00010986,2]
[335881426,1724568646955,-500.0,0.00010986,2]
[335881427,1724568646964,-500.0,0.00010986,2]
[335881428,1724568646973,-500.0,0.00010986,2]
[335881429,1724568646985,-500.0,0.00010986,2]
[335881430,1724568646995,-500.0,0.00010986,2]
[335881431,1724568647004,-379.95424623,0.00010986,2]
[335881432,1724568647258,-120.04575377,0.00010986,2]
[335881433,1724568647267,-500.0,0.00010986,2]
[335881434,1724568647278,-500.0,0.00010986,2]
[335881435,1724568647288,-863.12,0.00010986,2]
[335881436,1724568647299,-3058.23,0.00010986,2]
[335881437,1724568647310,-500.0,0.00010986,2]
[335881438,1724568647322,-500.0,0.00010986,2]
[335881439,1724568647331,-500.0,0.00010986,2]
[335881440,1724568647342,-500.0,0.00010986,2]
[335881441,1724568647351,-500.0,0.00010986,2]
[335881442,1724568647361,-681.56,0.00010986,2]
[335881443,1724568647371,-4163.34542267,0.00010986,2]
[335881444,1724568647382,-3455.53409534,0.00010986,2]
[335881445,1724568647394,-553.62111646,0.00010986,2]
[335881446,1724568647405,-277.95,0.00010986,2]
[335881447,1724568647416,-2754.31674355,0.00010986,2]
[335881448,1724568647427,-5859.8,0.00010986,2]
[335881449,1724568647438,-341.04,0.00010986,2]
[335881450,1724568647450,-1023.82317081,0.00010986,2]
[335881451,1724568647473,-1136.84822915,0.00010986,2]
[335881452,1724568647486,-680.3546727,0.00010986,2]
[335881453,1724568647497,-764.825,0.00010986,2]
[335881454,1724568647508,-336.65876024,0.00010986,2]
[335881455,1724568647519,-11444.947811,0.00010986,2]
[335881456,1724568647531,-559.40606601,0.00010986,2]
[335881457,1724568647542,-482.93752747,0.00010986,2]
[335881458,1724568647556,-935.45275129,0.00010986,2]
[335881459,1724568647567,-412.1753019,0.00010986,2]
[335881460,1724568647578,-605.70812265,0.00010986,2]
[335881461,1724568647589,-767.14366818,0.00010986,2]
[335881462,1724568647599,-589.37436581,0.00010986,2]
[335881463,1724568647611,-529.53743815,0.00010986,2]
[335881464,1724568647622,-11472.72054191,0.00010986,2]
[335881465,1724568647633,-315.53025998,0.00010986,2]
[335881466,1724568647644,-26705.94893473,0.00010986,2]
[335881467,1724568647654,-152060.00685553,0.00010986,2]
[335881468,1724568647665,-4202.89669979,0.00010986,2]
[335881469,1724568647676,-471.44131326,0.00010986,2]
[335881470,1724568647687,-1000.0032295,0.00010986,2]
[335881471,1724568647698,-935.12,0.00010986,2]
[335881472,1724568647712,-8140.2985015,0.00010986,2]
[335881473,1724568647723,-1490.79089986,0.00010986,2]
[335881474,1724568647735,-772.82854254,0.00010986,2]
[335881475,1724568647746,-6655.27794624,0.00010986,2]
[335881476,1724568647756,-294.14994472,0.00010986,2]
[335881477,1724568647767,-895.78987325,0.00010986,2]
[335881478,1724568647778,-4445.23740939,0.00010986,2]
[335881479,1724568647790,-837.93466786,0.00010986,2]
[335881480,1724568647801,-1203.22411656,0.00010986,2]
[335881481,1724568647810,-895.19865544,0.00010989,2]
[335881482,1724568647820,-187.21394844,0.00010989,2]
[335881483,1724568647829,-155.79027488,0.00010989,2]
[335881484,1724568647838,-225.61436308,0.00010989,2]
[335881485,1724568647847,-380.72044543,0.00010989,2]
[335881486,1724568647857,-211.65817651,0.00010989,2]
[335881487,1724568647866,-392.67304101,0.00010989,2]
[335881488,1724568648035,-179.86122976,0.00010989,2]
[335881489,1724568648046,-357.4813523,0.00010989,2]
[335881490,1724568648055,-206.96862247,0.00010993,2]
[335881491,1724568648067,-48.80684719,0.00010993,2]
[335881492,1724568648078,-155.0,0.00010993,2]
[335881493,1724568648088,-485.22914892,0.00010993,2]
[335881494,1724568648097,-401.88865473,0.00010993,2]
[335881495,1724568648107,-255.21992957,0.00010993,2]
[335881496,1724568648116,-432.5166998,0.00010993,2]
[335881497,1724568648126,-155.0,0.00010993,2]
[335881498,1724568648135,-417.62580923,0.00010993,2]
[335881499,1724568648145,-159.62357463,0.00010993,2]
[335881500,1724568648154,-218.92791442,0.00010993,2]
[335881501,1724568648164,-413.72811966,0.00010994,2]
[335881502,1724568648174,-500.0,0.00010994,2]
[335881503,1724568648183,-500.0,0.00010994,2]
[335881504,1724568648192,-500.0,0.00010994,2]
[335881505,1724568648201,-500.0,0.00010994,2]
[335881506,1724568648210,-500.0,0.00010994,2]
[335881507,1724568648220,-500.0,0.00010994,2]
[335881508,1724568648229,-500.0,0.00010994,2]
[335881509,1724568648238,-500.0,0.00010994,2]
[335881510,1724568648247,-500.0,0.00010994,2]
[335881511,1724568648257,-500.0,0.00010994,2]
[335881512,1724568648266,-500.0,0.00010994,2]
[335881513,1724568648275,-500.0,0.00010994,2]
[335881514,1724568648284,-500.0,0.00010994,2]
[335881515,1724568648293,-500.0,0.00010994,2]
[335881516,1724568648302,-500.0,0.00010994,2]
[335881517,1724568648312,-500.0,0.00010994,2]
[335881518,1724568648321,-739.96,0.00010994,2]
[335881519,1724568648330,-500.0,0.00010994,2]
[335881520,1724568648340,-306.98363518,0.00010994,2]
[335881521,1724568648350,-1249.66,0.00010994,2]
[335881522,1724568648359,-278.48281881,0.00010994,2]
[335881523,1724568648375,-221.51718119,0.00010994,2]
[335881524,1724568648385,-500.0,0.00010994,2]
[335881525,1724568648394,-377.23333353,0.00010994,2]
[335881526,1724568648405,-380.21666647,0.00010994,2]
[335881527,1724568648414,-571.84,0.00010994,2]
[335881528,1724568648424,-500.0,0.00010994,2]
[335881529,1724568648433,-500.0,0.00010994,2]
[335881530,1724568648442,-860.21,0.00010994,2]
[335881531,1724568648452,-726.43,0.00010994,2]
[335881532,1724568648461,-500.0,0.00010994,2]
[335881533,1724568648470,-500.0,0.00010994,2]
[335881534,1724568648479,-762.57,0.00010994,2]
[335881535,1724568648488,-216.63556235,0.00010994,2]
[335881536,1724568648498,-500.0,0.00010994,2]
[335881537,1724568648507,-228.53400062,0.00010994,2]
[335881538,1724568648518,-271.46599938,0.00010994,2]
[335881539,1724568648527,-606.15,0.00010994,2]
[335881540,1724568648541,-500.0,0.00010994,2]
[335881541,1724568648550,-847.27,0.00010994,2]
[335881542,1724568648559,-500.0,0.00010994,2]
[335881543,1724568648568,-500.0,0.00010994,2]
[335881544,1724568648577,-606.93,0.00010994,2]
[335881545,1724568648586,-1058.87,0.00010994,2]
[335881546,1724568648596,-500.0,0.00010994,2]
[335881547,1724568648605,-324.48805808,0.00010994,2]
[335881548,1724568648614,-500.0,0.00010994,2]
[335881549,1724568648623,-501.55050772,0.00010994,2]
[335881550,1724568648633,-532.79,0.00010994,2]
[335881551,1724568648642,-853.45,0.00010994,2]
[335881552,1724568648651,-500.0,0.00010994,2]
[335881553,1724568648664,-560.5,0.00010994,2]
[335881554,1724568648674,-500.0,0.00010994,2]
[335881555,1724568648683,-514.01,0.00010994,2]
[335881556,1724568648693,-500.0,0.00010994,2]
[335881557,1724568648702,-500.0,0.00010994,2]
[335881558,1724568648711,-500.0,0.00010994,2]
[335881559,1724568648721,-500.0,0.00010994,2]
[335881560,1724568648732,-500.0,0.00010994,2]
[335881561,1724568648742,-500.0,0.00010994,2]
[335881562,1724568648751,-500.0,0.00010994,2]
[335881563,1724568648760,-500.0,0.00010994,2]
[335881564,1724568648769,-1040.4,0.00010994,2]
[335881565,1724568648779,-500.0,0.00010994,2]
[335881566,1724568648790,-500.0,0.00010994,2]
[335881567,1724568648799,-500.0,0.00010994,2]
[335881568,1724568648810,-500.0,0.00010994,2]
[335881569,1724568648819,-500.0,0.00010994,2]
[335881570,1724568648829,-315.84728426,0.00010994,2]
[335881571,1724568648841,-184.15271574,0.00010994,2]
[335881572,1724568648851,-1174.23,0.00010994,2]
[335881573,1724568648860,-500.0,0.00010994,2]
[335881574,1724568648870,-500.0,0.00010994,2]
[335881575,1724568648879,-182.93113746,0.00010994,2]
[335881576,1724568648891,-317.06886254,0.00010994,2]
[335881577,1724568648901,-500.0,0.00010994,2]
[335881578,1724568648910,-500.0,0.00010994,2]
[335881579,1724568648919,-500.0,0.00010994,2]
[335881580,1724568648929,-811.48,0.00010994,2]
[335881581,1724568648938,-500.0,0.00010994,2]
[335881582,1724568648947,-500.0,0.00010994,2]
[335881583,1724568648956,-177.25299697,0.00010994,2]
[335881584,1724568648969,-432.89653833,0.00010994,2]
[335881585,1724568648981,-276.639247,0.00010994,2]
[335881586,1724568648992,-375.2612177,0.00010994,2]
[335881587,1724568649001,-500.0,0.00010994,2]
[335881588,1724568649010,-547.83706941,0.00010994,2]
[335881589,1724568649021,-164.08293059,0.00010994,2]
[335881590,1724568649031,-500.0,0.00010994,2]
[335881591,1724568649040,-52.21708941,0.00010994,2]
[335881592,1724568649052,-447.78291059,0.00010994,2]
[335881593,1724568649061,-500.0,0.00010994,2]
[335881594,1724568649070,-500.0,0.00010994,2]
[335881595,1724568649083,-500.0,0.00010994,2]
[335881596,1724568649093,-392.21708941,0.00010994,2]
[335881597,1724568649105,-709.17,0.00010994,2]
[335881598,1724568649119,-91.26291059,0.00010994,2]
[335881599,1724568649128,-500.0,0.00010994,2]
[335881600,1724568649138,-500.0,0.00010994,2]
[335881601,1724568649147,-757.02398295,0.00010994,2]
[335881602,1724568649160,-263.34601705,0.00010994,2]
[335881603,1724568649170,-500.0,0.00010994,2]
[335881604,1724568649180,-500.0,0.00010994,2]
[335881605,1724568649190,-500.0,0.00010994,2]
[335881606,1724568649199,-500.0,0.00010994,2]
[335881607,1724568649209,-500.0,0.00010994,2]
[335881608,1724568649218,-500.0,0.00010994,2]
[335881609,1724568649227,-500.0,0.00010994,2]
[335881610,1724568649237,-500.0,0.00010994,2]
[335881611,1724568649247,-500.0,0.00010994,2]
[335881612,1724568649256,-500.0,0.00010994,2]
[335881613,1724568649265,-500.0,0.00010994,2]
[335881614,1724568649274,-500.0,0.00010994,2]
[335881615,1724568649283,-500.0,0.00010994,2]
[335881616,1724568649293,-487.1401039,0.00010994,2]
[335881617,1724568649302,-500.0,0.00010994,2]
[335881618,1724568649312,-500.0,0.00010994,2]
[335881619,1724568649321,-500.0,0.00010994,2]
[335881620,1724568649330,-863.12,0.00010994,2]
[335881621,1724568649340,-3058.23,0.00010994,2]
[335881622,1724568649349,-500.0,0.00010994,2]
[335881623,1724568649359,-500.0,0.00010994,2]
[335881624,1724568649368,-500.0,0.00010994,2]
[335881625,1724568649377,-500.0,0.00010994,2]
[335881626,1724568649387,-508.90010372,0.00010994,2]
[335881627,1724568649397,-681.56,0.00010994,2]
[335881628,1724568649406,-500.0,0.00010995,2]
[335881629,1724568649416,-500.0,0.00010995,2]
[335881630,1724568649425,-373.53252612,0.00010995,2]
[335881631,1724568649435,-500.0,0.00010995,2]
[335881632,1724568649444,-500.0,0.00010995,2]
[335881633,1724568649454,-500.0,0.00010995,2]
[335881634,1724568649464,-500.0,0.00010995,2]
[335881635,1724568649473,-500.0,0.00010995,2]
[335881636,1724568649489,-500.0,0.00010995,2]
[335881637,1724568649498,-500.0,0.00010995,2]
[335881638,1724568649508,-500.0,0.00010995,2]
[335881639,1724568649517,-500.0,0.00010995,2]
[335881640,1724568649526,-500.0,0.00010995,2]
[335881641,1724568649536,-515.37806835,0.00010995,2]
[335881642,1724568649546,-500.0,0.00010995,2]
[335881643,1724568649555,-500.0,0.00010995,2]
[335881644,1724568649565,-500.0,0.00010995,2]
[335881645,1724568649574,-500.0,0.00010995,2]
[335881646,1724568649584,-500.0,0.00010995,2]
[335881647,1724568649594,-500.0,0.00010995,2]
[335881648,1724568649604,-500.0,0.00010995,2]
[335881649,1724568649614,-500.0,0.00010995,2]
[335881650,1724568649624,-530.4,0.00010995,2]
[335881651,1724568649634,-896.02,0.00010995,2]
[335881652,1724568649644,-507.41628148,0.00010995,2]
[335881653,1724568649655,-500.0,0.00010995,2]
[335881654,1724568649664,-500.0,0.00010995,2]
[335881655,1724568649674,-500.0,0.00010995,2]
[335881656,1724568649684,-500.0,0.00010995,2]
[335881657,1724568649694,-500.0,0.00010995,2]
[335881658,1724568649703,-500.0,0.00010995,2]
[335881659,1724568649713,-500.0,0.00010995,2]
[335881660,1724568649722,-500.0,0.00010995,2]
[335881661,1724568649733,-500.0,0.00010995,2]
[335881662,1724568649742,-500.0,0.00010995,2]
[335881663,1724568649752,-648.42,0.00010995,2]
[335881664,1724568649761,-500.0,0.00010995,2]
[335881665,1724568649772,-500.0,0.00010995,2]
[335881666,1724568649782,-658.19,0.00010995,2]
[335881667,1724568649792,-500.0,0.00010995,2]
[335881668,1724568649802,-500.0,0.00010995,2]
[335881669,1724568649812,-661.35,0.00010995,2]
[335881670,1724568649822,-500.0,0.00010995,2]
[335881671,1724568649833,-568.39,0.00010995,2]
[335881672,1724568649843,-500.0,0.00010995,2]
[335881673,1724568649853,-565.53,0.00010995,2]
[335881674,1724568649864,-500.0,0.00010995,2]
[335881675,1724568649873,-500.0,0.00010995,2]
[335881676,1724568649883,-500.0,0.00010995,2]
[335881677,1724568649892,-500.0,0.00010995,2]
[335881678,1724568649901,-500.0,0.00010995,2]
[335881679,1724568649910,-500.0,0.00010995,2]
[335881680,1724568649920,-500.0,0.00010995,2]
[335881681,1724568649929,-500.0,0.00010995,2]
[335881682,1724568649938,-500.0,0.00010995,2]
[335881683,1724568649947,-958.55,0.00010995,2]
[335881684,1724568649956,-500.0,0.00010995,2]
[335881685,1724568649966,-500.0,0.00010995,2]
[335881686,1724568649975,-500.0,0.00010995,2]
[335881687,1724568649984,-500.0,0.00010995,2]
[335881688,1724568649994,-673.57,0.00010995,2]
[335881689,1724568650002,-500.0,0.00010995,2]
[335881690,1724568650012,-500.0,0.00010995,2]
[335881691,1724568650021,-500.0,0.00010995,2]
[335881692,1724568650030,-500.0,0.00010995,2]
[335881693,1724568650039,-500.0,0.00010995,2]
[335881694,1724568650050,-500.0,0.00010995,2]
[335881695,1724568650059,-500.0,0.00010995,2]
[335881696,1724568650068,-500.0,0.00010995,2]
[335881697,1724568650081,-553.11,0.00010995,2]
[335881698,1724568650091,-500.0,0.00010995,2]
[335881699,1724568650100,-500.0,0.00010995,2]
[335881700,1724568650110,-500.0,0.00010995,2]
[335881701,1724568650120,-500.0,0.00010995,2]
[335881702,1724568650130,-500.0,0.00010995,2]
[335881703,1724568650140,-500.0,0.00010995,2]
[335881704,1724568650151,-2235.91,0.00010995,2]
[335881705,1724568650161,-500.0,0.00010995,2]
[335881706,1724568650170,-746.44,0.00010995,2]
[335881707,1724568650180,-2212.84,0.00010995,2]
[335881708,1724568650189,-500.0,0.00010995,2]
[335881709,1724568650198,-5146.01,0.00010995,2]
[335881710,1724568650208,-500.0,0.00010995,2]
[335881711,1724568650217,-500.0,0.00010995,2]
[335881712,1724568650226,-3769.59,0.00010995,2]
[335881713,1724568650236,-500.0,0.00010995,2]
[335881714,1724568650245,-2627.89,0.00010995,2]
[335881715,1724568650255,-500.0,0.00010995,2]
[335881716,1724568650264,-5679.41,0.00010995,2]
[335881717,1724568650275,-400.0,0.00010995,2]
[335881718,1724568650286,-500.0,0.00010995,2]
[335881719,1724568650297,-1945.88,0.00010995,2]
[335881720,1724568650308,-500.0,0.00010995,2]
[335881721,1724568650318,-500.0,0.00010995,2]
[335881722,1724568650330,-500.0,0.00010995,2]
[335881723,1724568650340,-500.0,0.00010995,2]
[335881724,1724568650350,-4892.26,0.00010995,2]
[335881725,1724568650360,-1093.97,0.00010995,2]
[335881726,1724568650372,-630.84,0.00010995,2]
[335881727,1724568650382,-852.35,0.00010995,2]
[335881728,1724568650392,-500.0,0.00010995,2]
[335881729,1724568650403,-500.0,0.00010995,2]
[335881730,1724568650412,-2938.56,0.00010995,2]
[335881731,1724568650422,-715.21,0.00010995,2]
[335881732,1724568650431,-500.0,0.00010995,2]
[335881733,1724568650443,-500.0,0.00010995,2]
[335881734,1724568650454,-500.0,0.00010995,2]
[335881735,1724568650464,-500.0,0.00010995,2]
[335881736,1724568650476,-1214.25,0.00010995,2]
[335881737,1724568650485,-500.0,0.00010995,2]
[335881738,1724568650495,-2029.2,0.00010995,2]
[335881739,1724568650506,-588.41,0.00010995,2]
[335881740,1724568650516,-500.0,0.00010995,2]
[335881741,1724568650526,-3621.14,0.00010995,2]
[335881742,1724568650536,-1355.12,0.00010995,2]
[335881743,1724568650547,-500.0,0.00010995,2]
[335881744,1724568650556,-500.0,0.00010995,2]
[335881745,1724568650565,-676.18,0.00010995,2]
[335881746,1724568650575,-500.0,0.00010995,2]
[335881747,1724568650584,-861.22,0.00010995,2]
[335881748,1724568650594,-500.0,0.00010995,2]
[335881749,1724568650603,-500.0,0.00010995,2]
[335881750,1724568650613,-515.72,0.00010995,2]
[335881751,1724568650622,-591.98,0.00010995,2]
[335881752,1724568650631,-604.56,0.00010995,2]
[335881753,1724568650640,-500.0,0.00010995,2]
[335881754,1724568650650,-826.45,0.00010995,2]
[335881755,1724568650659,-500.0,0.00010995,2]
[335881756,1724568650668,-500.0,0.00010995,2]
[335881757,1724568650677,-765.45,0.00010995,2]
[335881758,1724568650687,-500.0,0.00010995,2]
[335881759,1724568650696,-555.74,0.00010995,2]
[335881760,1724568650706,-1130.27,0.00010995,2]
[335881761,1724568650715,-500.0,0.00010995,2]
[335881762,1724568650727,-500.0,0.00010995,2]
[335881763,1724568650737,-500.0,0.00010995,2]
[335881764,1724568650746,-500.0,0.00010995,2]
[335881765,1724568650756,-500.0,0.00010995,2]
[335881766,1724568650766,-500.0,0.00010995,2]
[335881767,1724568650775,-500.0,0.00010995,2]
[335881768,1724568650785,-603.74,0.00010995,2]
[335881769,1724568650795,-500.0,0.00010995,2]
[335881770,1724568650805,-575.68,0.00010995,2]
[335881771,1724568650815,-500.0,0.00010995,2]
[335881772,1724568650826,-500.0,0.00010995,2]
[335881773,1724568650836,-500.0,0.00010995,2]
[335881774,1724568650846,-500.0,0.00010995,2]
[335881775,1724568650856,-500.0,0.00010995,2]
[335881776,1724568650868,-500.0,0.00010995,2]
[335881777,1724568650878,-565.3,0.00010995,2]
[335881778,1724568650888,-500.0,0.00010995,2]
[335881779,1724568650900,-739.96,0.00010995,2]
[335881780,1724568650909,-500.0,0.00010995,2]
[335881781,1724568650919,-517.04,0.00010995,2]
[335881782,1724568650928,-1249.66,0.00010995,2]
[335881783,1724568651079,-500.0,0.00010995,2]
[335881784,1724568651089,-44.35121311,0.00010995,2]
[335881785,1724568651107,-657.13878689,0.00010995,2]
[335881786,1724568651116,-500.0,0.00010995,2]
[335881787,1724568651127,-500.0,0.00010995,2]
[335881788,1724568651138,-757.45,0.00010995,2]
[335881789,1724568651147,-571.84,0.00010995,2]
[335881790,1724568651158,-500.0,0.00010995,2]
[335881791,1724568651168,-1411.96,0.00010995,2]
[335881792,1724568651177,-992.85,0.00010995,2]
[335881793,1724568651186,-500.0,0.00010995,2]
[335881794,1724568651195,-860.21,0.00010995,2]
[335881795,1724568651204,-726.43,0.00010995,2]
[335881796,1724568651214,-500.0,0.00010995,2]
[335881797,1724568651223,-500.0,0.00010995,2]
[335881798,1724568651233,-1155.16,0.00010995,2]
[335881799,1724568651242,-500.0,0.00010995,2]
[335881800,1724568651251,-762.57,0.00010995,2]
[335881801,1724568651260,-500.0,0.00010995,2]
[335881802,1724568651269,-500.0,0.00010995,2]
[335881803,1724568651279,-1265.12,0.00010995,2]
[335881804,1724568651288,-500.0,0.00010995,2]
[335881805,1724568651298,-500.0,0.00010995,2]
[335881806,1724568651307,-994.29,0.00010995,2]
[335881807,1724568651317,-1756.79,0.00010995,2]
[335881808,1724568651327,-606.15,0.00010995,2]
[335881809,1724568651336,-671.87,0.00010995,2]
[335881810,1724568651346,-500.0,0.00010995,2]
[335881811,1724568651355,-1156.05,0.00010995,2]
[335881812,1724568651365,-761.06,0.00010995,2]
[335881813,1724568651376,-500.0,0.00010995,2]
[335881814,1724568651385,-886.68,0.00010995,2]
[335881815,1724568651394,-500.0,0.00010995,2]
[335881816,1724568651403,-500.0,0.00010995,2]
[335881817,1724568651414,-511.25,0.00010995,2]
[335881818,1724568651423,-902.05,0.00010995,2]
[335881819,1724568651432,-1305.17,0.00010995,2]
[335881820,1724568651442,-925.02,0.00010995,2]
[335881821,1724568651451,-500.0,0.00010995,2]
[335881822,1724568651461,-500.0,0.00010995,2]
[335881823,1724568651471,-667.0,0.00010995,2]
[335881824,1724568651481,-500.0,0.00010995,2]
[335881825,1724568651491,-847.27,0.00010995,2]
[335881826,1724568651500,-500.0,0.00010995,2]
[335881827,1724568651510,-1188.81,0.00010995,2]
[335881828,1724568651519,-500.0,0.00010995,2]
[335881829,1724568651529,-500.0,0.00010995,2]
[335881830,1724568651538,-500.0,0.00010995,2]
[335881831,1724568651548,-1175.3,0.00010995,2]
[335881832,1724568651557,-606.93,0.00010995,2]
[335881833,1724568651566,-1058.87,0.00010995,2]
[335881834,1724568651576,-500.0,0.00010995,2]
[335881835,1724568651585,-500.0,0.00010995,2]
[335881836,1724568651595,-1583.84,0.00010995,2]
[335881837,1724568651604,-500.0,0.00010995,2]
[335881838,1724568651613,-500.0,0.00010995,2]
[335881839,1724568651623,-500.0,0.00010995,2]
[335881840,1724568651632,-500.0,0.00010995,2]
[335881841,1724568651641,-532.79,0.00010995,2]
[335881842,1724568651651,-853.45,0.00010995,2]
[335881843,1724568651661,-1126.12,0.00010995,2]
[335881844,1724568651670,-872.74,0.00010995,2]
[335881845,1724568651680,-560.5,0.00010995,2]
[335881846,1724568651689,-158.59114705,0.00010995,2]
[335881847,1724568651698,-2928.11,0.00010995,2]
[335881848,1724568651708,-514.01,0.00010995,2]
[335881849,1724568651717,-779.98,0.00010995,2]
[335881850,1724568651727,-162.60143645,0.00010995,2]
[335881851,1724568651736,-500.0,0.00010995,2]
[335881852,1724568651745,-500.0,0.00010995,2]
[335881853,1724568651755,-663.75,0.00010995,2]
[335881854,1724568651764,-500.0,0.00010995,2]
[335881855,1724568651773,-500.0,0.00010995,2]
[335881856,1724568651783,-500.0,0.00010995,2]
[335881857,1724568651792,-298.08475708,0.00010995,2]
[335881858,1724568651801,-583.33,0.00010995,2]
[335881859,1724568651811,-1040.4,0.00010995,2]
[335881860,1724568651821,-500.0,0.00010995,2]
[335881861,1724568651831,-523.91,0.00010995,2]
[335881862,1724568651840,-500.0,0.00010995,2]
[335881863,1724568651850,-1380.66,0.00010995,2]
[335881864,1724568651860,-500.0,0.00010995,2]
[335881865,1724568651869,-500.0,0.00010995,2]
[335881866,1724568651879,-1308.79,0.00010995,2]